bitfinex/quotes_ETHUSD_20220218
["timestamp","ask_amount","ask_price","bid_price","bid_amount"]
[1645165212086,4.03372696,2905.0,2904.9,1.59157468]
[1645165212342,0.53372696,2905.0,2904.9,1.59157468]
[1645165212545,4.03372696,2905.0,2904.9,1.59157468]
[1645165212948,5.0,2904.9,2904.0,0.1721]
[1645165213148,0.92494681,2904.2,2904.1,0.91223355]
[1645165213347,1.45867377,2904.2,2904.1,0.91223355]
[1645165213543,1.63077377,2904.2,2904.1,0.91223355]
[1645165214147,0.70582696,2904.2,2904.1,0.91223355]
[1645165215244,1.56713696,2904.2,2904.1,0.91223355]
[1645165215644,1.56713696,2904.2,2903.5,0.00696224]
[1645165215845,0.53372696,2904.1,2903.6,0.89318824]
[1645165217986,0.1721,2904.5,2903.6,1.19318824]
[1645165218186,0.5652996,2904.4,2904.1,0.89460858]
[1645165218388,0.5652996,2904.3,2904.2,0.89318824]
[1645165218786,0.5652996,2904.5,2904.2,0.89318824]
[1645165220040,0.5152996,2904.5,2904.2,0.89318824]
[1645165220239,0.1721,2904.7,2904.2,0.89318824]
[1645165220841,0.1721,2904.8,2904.2,0.89318824]
[1645165221244,0.86114,2904.6,2904.2,0.89318824]
[1645165221540,0.1721,2904.8,2904.2,0.89318824]
[1645165223346,1.03317,2904.8,2904.2,0.89318824]
[1645165223787,1.33317,2904.8,2904.2,0.89318824]
[1645165223985,1.33317,2904.8,2903.6,1.2226]
[1645165223986,0.68980568,2904.1,2903.6,1.2226]
[1645165224185,0.68980568,2904.1,2903.5,0.00718222]
[1645165224585,0.68980568,2904.1,2903.5,0.00421133]
[1645165224788,0.68980568,2904.1,2903.5,0.0071785]
[1645165225186,0.68980568,2904.1,2903.6,1.17636328]
[1645165226593,1.20646459,2904.1,2903.6,1.17636328]
[1645165228236,1.20646459,2904.1,2903.6,1.47636328]
[1645165228636,1.20646459,2904.1,2903.6,1.17636328]
[1645165232084,1.20646459,2904.1,2903.5,0.00717874]
[1645165232289,1.20646459,2904.1,2903.5,0.00296741]
[1645165232495,1.37856459,2904.1,2903.5,0.00296741]
[1645165232889,1.37856459,2904.1,2903.3,0.00421133]
[1645165233087,1.20646459,2904.1,2903.5,0.00296739]
[1645165234187,1.20646459,2904.1,2903.3,0.00421133]
[1645165234488,1.37856459,2904.1,2903.5,0.00296739]
[1645165234741,1.20646459,2904.1,2903.5,0.00296739]
[1645165235378,1.20646459,2904.1,2903.7,1.06726492]
[1645165238584,0.68980568,2904.1,2903.7,1.06726492]
[1645165240182,0.68980568,2904.1,2903.8,0.89173355]
[1645165240985,0.68851148,2904.1,2903.8,0.89173355]
[1645165241387,0.8613,2904.0,2903.8,0.89173355]
[1645165241587,0.68851148,2904.1,2903.8,0.89173355]
[1645165242740,0.56354792,2904.0,2903.8,0.89173355]
[1645165243742,0.68851148,2904.1,2903.8,0.89173355]
[1645165245454,0.56394943,2904.0,2903.8,0.89173355]
[1645165246884,0.68851148,2904.1,2903.8,0.89173355]
[1645165249593,1.42570125,2904.0,2903.8,0.89173355]
[1645165249838,0.56440125,2903.9,2903.8,0.89173355]
[1645165250837,0.8613,2904.0,2903.8,0.89173355]
[1645165252339,0.68851148,2904.1,2903.8,0.89173355]
[1645165252587,0.56491103,2904.0,2903.8,0.89173355]
[1645165258954,1.42622103,2904.0,2903.8,0.89173355]
[1645165259141,0.56491103,2903.9,2903.8,0.89173355]
[1645165261388,0.86131,2904.0,2903.9,4.0]
[1645165261592,0.56628359,2904.0,2903.9,8.39173355]
[1645165261789,0.56628359,2904.0,2903.9,5.84293355]
[1645165262111,0.68851148,2904.1,2903.9,5.84293355]
[1645165262291,0.68851148,2904.1,2904.0,0.89173355]
[1645165262494,1.24413618,2904.1,2904.0,1.54829923]
[1645165262891,1.24413618,2904.1,2904.0,1.19173355]
[1645165264102,1.25318909,2904.1,2904.0,1.19173355]
[1645165264291,0.68851148,2904.1,2904.0,1.19173355]
[1645165264743,0.68851148,2904.1,2904.0,4.69173355]
[1645165264937,0.68851148,2904.1,2904.0,1.19173355]
[1645165265135,1.25312047,2904.1,2904.0,1.19173355]
[1645165265339,0.68851148,2904.1,2904.0,1.19173355]
[1645165265738,0.68851148,2904.1,2904.0,1.84829923]
[1645165266141,0.68851148,2904.1,2904.0,1.49173355]
[1645165266387,0.68851148,2904.1,2904.0,0.6]
[1645165266538,0.68851148,2904.1,2904.0,0.95616402]
[1645165266738,0.68851148,2904.1,2904.0,2.14789757]
[1645165266937,0.68851148,2904.1,2904.0,1.84789757]
[1645165267138,0.68851148,2904.1,2904.0,1.19173355]
[1645165267544,0.68851148,2904.1,2904.0,1.49173355]
[1645165267947,0.68851148,2904.1,2904.0,5.64789757]
[1645165268145,0.68851148,2904.1,2904.0,4.99173355]
[1645165268345,0.68851148,2904.1,2904.0,5.64789757]
[1645165268588,0.68851148,2904.1,2904.0,1.49173355]
[1645165269185,0.68851148,2904.1,2904.0,0.89173355]
[1645165269390,0.68851148,2904.1,2904.0,0.3]
[1645165269586,0.68851148,2904.1,2904.0,0.6]
[1645165269786,0.68851148,2904.1,2904.0,0.89173355]
[1645165273339,1.25717998,2904.1,2904.0,0.89173355]
[1645165273736,1.25717998,2904.1,2903.8,0.89173355]
[1645165273969,0.5686685,2904.0,2903.8,0.89173355]
[1645165274937,0.5686685,2904.0,2903.8,1.19173355]
[1645165275139,0.5686685,2904.0,2903.9,0.89173355]
[1645165276384,0.5686685,2904.0,2903.8,0.89173355]
[1645165276589,0.5686685,2904.0,2903.7,1.36726492]
[1645165276590,0.5686685,2904.0,2903.9,0.89173355]
[1645165276984,0.5686685,2904.0,2903.8,0.89173355]
[1645165277195,0.5686685,2904.0,2903.9,0.89173355]
[1645165277391,0.5686685,2904.0,2903.8,0.89173355]
[1645165278092,0.68851148,2904.1,2903.9,3.5]
[1645165278294,0.56867487,2904.0,2903.7,2.02342894]
[1645165278492,0.68851148,2904.1,2903.8,5.04756683]
[1645165278692,0.68851148,2904.1,2903.9,1.54756683]
[1645165278892,0.68851148,2904.1,2903.9,1.84756683]
[1645165279098,0.68851148,2904.1,2904.0,0.89140281]
[1645165281146,1.25731942,2904.1,2904.0,0.89140281]
[1645165283887,1.25612577,2904.1,2904.0,0.89140281]
[1645165285792,1.25637925,2904.1,2904.0,0.89140281]
[1645165286090,1.25638061,2904.1,2904.0,0.89140281]
[1645165286289,0.68731783,2904.1,2904.0,0.89140281]
[1645165286490,0.68731783,2904.1,2903.9,1.84756683]
[1645165286691,0.68731783,2904.1,2904.0,0.89140281]
[1645165287944,0.68731783,2904.1,2904.0,1.54756683]
[1645165288952,0.68731783,2904.1,2904.0,5.04756683]
[1645165289149,0.0049296,2904.8,2904.1,6.7217]
[1645165289350,0.0049296,2904.8,2904.1,28.0707]
[1645165289554,0.57124245,2904.7,2904.3,0.6562639]
[1645165289748,0.57124245,2904.7,2904.5,0.85503985]
[1645165289749,0.57617205,2904.7,2904.5,0.85503985]
[1645165289947,0.0049296,2904.7,2904.6,0.89140281]
[1645165290147,0.00769852,2905.0,2904.6,0.89140281]
[1645165290346,0.57084872,2904.9,2904.6,0.89140281]
[1645165292918,0.0049296,2905.0,2904.6,0.89140281]
[1645165293119,0.5704508,2904.9,2904.6,0.89140281]
[1645165301191,0.5704508,2904.9,2904.7,0.89140281]
[1645165301395,0.0049296,2904.8,2904.2,0.89140281]
[1645165301593,0.0049296,2904.8,2904.1,0.1721]
[1645165301791,0.5704508,2904.7,2904.2,0.90126456]
[1645165301992,0.5704508,2904.6,2904.4,0.91751487]
[1645165302237,0.00771242,2905.0,2904.5,0.90126456]
[1645165302443,0.55758023,2904.9,2904.5,0.90126456]
[1645165302652,0.0049296,2904.8,2904.5,0.90126456]
[1645165302846,0.55758023,2904.7,2904.5,0.90126456]
[1645165303244,0.00780654,2905.0,2904.6,0.90126456]
[1645165303847,0.5576131,2904.9,2904.7,0.90126456]
[1645165304049,0.5576131,2904.9,2904.8,0.90126456]
[1645165304247,0.5576131,2904.9,2904.2,0.90126456]
[1645165304448,0.5625427,2904.8,2904.2,1.74212477]
[1645165304646,0.5576131,2904.7,2904.3,0.90126456]
[1645165304846,0.0049296,2904.8,2904.3,0.90126456]
[1645165305046,0.5576131,2904.7,2904.3,0.90126456]
[1645165305456,0.5576131,2904.6,2904.3,0.90126456]
[1645165305647,0.00606892,2905.0,2904.3,0.90126456]
[1645165305648,0.5576131,2904.9,2904.3,0.90126456]
[1645165305848,0.5625427,2904.8,2904.3,0.90126456]
[1645165306095,0.5576131,2904.7,2904.3,0.90126456]
[1645165306297,0.5576131,2904.6,2904.3,0.90126456]
[1645165306496,0.5576131,2904.5,2904.3,0.90126456]
[1645165306695,0.00791673,2905.0,2904.6,0.68982231]
[1645165306896,0.5578688,2904.9,2904.7,0.90126456]
[1645165310837,0.5578688,2904.9,2904.7,0.90006195]
[1645165311340,0.5578688,2904.9,2904.7,2.06635434]
[1645165311538,0.5578688,2904.9,2904.6,0.68982231]
[1645165314190,0.5578688,2904.9,2904.6,0.98982231]
[1645165315596,0.5578688,2904.9,2904.6,0.68982231]
[1645165328622,0.00791974,2905.0,2904.9,0.69003404]
[1645165329093,0.3459296,2905.0,2904.9,0.69003404]
[1645165329894,0.3459296,2905.0,2904.9,0.68856319]
[1645165330899,0.9047327,2905.0,2904.9,0.68856319]
[1645165331102,0.9047327,2905.0,2904.9,1.59077923]
[1645165348548,0.3459296,2905.0,2904.9,1.59077923]
[1645165349354,0.90983443,2905.0,2904.9,1.59077923]
[1645165349951,0.3459296,2905.0,2904.9,1.59077923]
[1645165350154,0.90981444,2905.0,2904.9,1.59077923]
[1645165350351,0.3459296,2905.0,2904.9,1.59077923]
[1645165350552,0.90982429,2905.0,2904.9,1.59077923]
[1645165358914,0.90489469,2905.0,2904.9,1.59077923]
[1645165359216,0.90982429,2905.0,2904.9,1.59077923]
[1645165361420,0.90489469,2905.0,2904.9,1.59077923]
[1645165363650,0.90489469,2905.0,2904.9,1.89077923]
[1645165364257,0.90533474,2905.0,2904.9,1.89077923]
[1645165366196,0.341,2905.0,2904.9,1.89077923]
[1645165366597,0.90539892,2905.0,2904.9,1.89077923]
[1645165366795,0.56439928,2905.0,2904.9,1.89077923]
[1645165366996,0.56932888,2905.0,2904.9,1.89077923]
[1645165367804,0.56931939,2905.0,2904.9,1.89077923]
[1645165368103,0.56931908,2905.0,2904.9,1.89077923]
[1645165368300,0.0049296,2905.0,2904.9,1.89077923]
[1645165368504,0.56438569,2905.0,2904.9,2.19077923]
[1645165368703,0.56438569,2905.0,2904.9,1.89077923]
[1645165368704,0.56437036,2905.0,2904.9,1.89077923]
[1645165368901,0.3459296,2905.1,2904.9,1.89077923]
[1645165369102,0.34910709,2905.1,2905.0,0.89859987]
[1645165369303,0.34417749,2905.1,2905.0,0.89859987]
[1645165369543,0.90859325,2905.1,2905.0,0.89859987]
[1645165369939,0.90541576,2905.1,2905.0,0.89859987]
[1645165377243,0.90541576,2905.1,2904.9,0.98856319]
[1645165377444,0.90541576,2905.1,2905.0,0.89873016]
[1645165377746,0.90541576,2905.1,2905.0,0.89874298]
[1645165377950,4.40541576,2905.1,2904.9,0.98856319]
[1645165378143,0.56682326,2905.0,2904.9,0.98856319]
[1645165378446,0.56682326,2905.0,2904.9,1.88505972]
[1645165378744,0.341,2905.0,2904.9,1.88505972]
[1645165379160,0.90782326,2905.0,2904.9,1.88505972]
[1645165379544,0.341,2905.0,2904.9,1.88505972]
[1645165379748,0.90778879,2905.0,2904.9,1.88505972]
[1645165380046,0.341,2905.0,2904.9,1.88505972]
[1645165380553,0.90777803,2905.0,2904.9,1.88505972]
[1645165380752,3.841,2905.0,2904.5,0.6562639]
[1645165381005,3.841,2905.0,2903.9,4.8694807]
[1645165381006,0.65863141,2904.8,2904.1,0.6562639]
[1645165381198,0.1721,2904.9,2904.0,3.9616639]
[1645165381199,4.33073141,2904.7,2904.0,3.9616639]
[1645165381497,1.0,2904.9,2904.0,3.9616639]
[1645165381498,0.65863141,2904.6,2904.0,3.3054]
[1645165381896,0.65863141,2904.6,2904.0,1.18548983]
[1645165382096,0.65863141,2904.5,2904.0,1.18548983]
[1645165382501,0.65863141,2904.5,2903.9,0.00431393]
[1645165383103,1.19365979,2904.6,2903.9,0.00431393]
[1645165383104,1.8522912,2904.6,2903.9,0.00431393]
[1645165383301,3.5,2904.5,2903.9,0.00431393]
[1645165384750,0.341,2904.4,2903.9,0.00431393]
[1645165391018,0.341,2904.4,2904.1,0.01538819]
[1645165391019,1.341,2904.4,2904.1,0.01538819]
[1645165391221,3.5,2904.3,2904.1,0.01538819]
[1645165391842,0.341,2904.2,2904.1,0.01538819]
[1645165393455,4.0,2904.0,2903.5,0.00296982]
[1645165393657,3.5,2903.9,2903.5,0.00296982]
[1645165394052,1.0,2903.8,2903.0,1.2134]
[1645165394252,0.87372061,2903.6,2903.5,0.00296961]
[1645165394653,1.0,2903.8,2903.5,0.00296961]
[1645165394854,0.341,2903.6,2903.5,0.00296961]
[1645165395252,0.341,2903.6,2903.0,1.2134]
[1645165395453,0.341,2903.6,2903.4,0.00296959]
[1645165396296,0.341,2903.6,2903.0,1.2134]
[1645165396691,0.341,2903.6,2903.4,0.00296962]
[1645165397499,0.341,2903.6,2903.0,1.2134]
[1645165397899,0.341,2903.6,2903.4,0.00296962]
[1645165398698,0.341,2903.6,2903.0,1.5134]
[1645165399098,0.341,2903.7,2903.4,0.00297674]
[1645165399940,0.341,2903.7,2903.3,0.97622599]
[1645165400140,0.341,2903.7,2903.0,1.5134]
[1645165400345,0.341,2903.7,2903.4,0.00297671]
[1645165401243,0.341,2903.7,2903.3,1.15344325]
[1645165401548,0.341,2903.7,2903.4,0.86543826]
[1645165402146,0.341,2903.8,2903.4,0.86543826]
[1645165402347,0.341,2903.8,2903.4,0.86246155]
[1645165402849,0.341,2903.8,2903.4,0.8654373]
[1645165403814,0.341,2903.8,2903.5,0.00297572]
[1645165404651,3.841,2903.8,2903.5,0.00297572]
[1645165404811,0.341,2903.8,2903.1,0.86246155]
[1645165405012,0.341,2903.8,2903.5,0.00297574]
[1645165405612,1.341,2904.0,2903.5,0.00297574]
[1645165406017,1.341,2904.0,2903.4,0.86246155]
[1645165406214,3.5,2903.9,2903.5,0.00297589]
[1645165406413,1.341,2904.0,2903.5,0.00297589]
[1645165407240,1.03082489,2903.7,2903.1,0.86246155]
[1645165408344,2.20234,2904.0,2903.1,0.86246155]
[1645165408545,0.59210144,2903.9,2903.1,0.86246155]
[1645165408747,0.341,2903.6,2903.1,0.86246155]
[1645165408944,0.341,2903.6,2903.2,0.00420936]
[1645165409145,0.16831316,2903.6,2903.3,0.86246155]
[1645165409352,0.16831316,2903.6,2903.3,0.86667091]
[1645165409546,0.16831316,2903.6,2903.4,1.8953761]
[1645165409747,0.16831316,2903.6,2903.5,1.16246155]
[1645165409949,0.16831316,2903.6,2903.5,0.86667091]
[1645165412302,0.1721,2904.2,2903.5,0.86667091]
[1645165412303,0.16831316,2904.1,2903.5,0.86667091]
[1645165412502,0.59228123,2904.0,2903.6,0.86667091]
[1645165412703,0.59228123,2904.0,2903.7,0.86667091]
[1645165412901,0.59228123,2904.0,2903.7,0.00420936]
[1645165413301,0.59228123,2904.0,2903.5,0.00420936]
[1645165413504,0.59228123,2904.0,2903.6,0.86288933]
[1645165413701,0.59228123,2904.0,2903.7,0.00420936]
[1645165414252,0.59228123,2904.0,2903.5,0.0073879]
[1645165414402,0.59228123,2904.0,2903.6,0.86293096]
[1645165414605,0.59228123,2904.0,2903.7,0.00420936]
[1645165414855,0.16831316,2903.9,2903.8,0.86307753]
[1645165415249,0.86118,2904.4,2903.9,0.03149027]
[1645165415448,0.59558665,2904.3,2903.9,0.03149027]
[1645165416148,2.31816665,2904.3,2903.9,0.03149027]
[1645165416449,0.59558665,2904.2,2903.9,0.03149027]
[1645165417556,1.45686665,2904.2,2903.9,0.03149027]
[1645165417755,0.59558665,2904.1,2903.9,0.03149027]
[1645165418998,0.59558665,2904.1,2904.0,0.86102803]
[1645165419196,0.69542006,2904.5,2904.0,0.86102803]
[1645165419197,0.59558665,2904.4,2904.0,0.86102803]
[1645165419415,0.52332006,2904.5,2904.0,0.86102803]
[1645165419416,0.59657911,2904.3,2904.0,0.86102803]
[1645165419618,0.59657911,2904.2,2904.0,0.86102803]
[1645165419801,0.59657911,2904.1,2904.0,0.86102803]
[1645165420001,0.59657911,2904.4,2904.0,0.86102803]
[1645165420298,0.59657911,2904.3,2904.0,0.86102803]
[1645165422247,0.59657911,2904.2,2904.0,0.86102803]
[1645165422455,0.52332006,2904.5,2904.0,0.86102803]
[1645165422456,0.59657911,2904.1,2904.0,0.86102803]
[1645165422658,0.59657911,2904.4,2904.0,1.16102803]
[1645165422853,0.59657911,2904.4,2904.1,0.86102803]
[1645165423054,1.45780911,2904.4,2904.1,0.86102803]
[1645165423257,0.59657911,2904.3,2904.1,0.86102803]
[1645165424852,0.59657911,2904.2,2904.1,0.86102803]
[1645165425057,0.59657911,2904.4,2904.1,0.86102803]
[1645165425853,1.45775911,2904.4,2904.2,0.86102803]
[1645165426093,0.59657911,2904.3,2903.9,0.03149027]
[1645165426293,0.59657911,2904.3,2904.0,0.86362805]
[1645165426494,0.59657911,2904.2,2904.0,0.86362805]
[1645165426697,0.59657911,2904.1,2904.0,0.86362805]
[1645165426894,0.59657911,2904.1,2904.0,1.16362805]
[1645165427092,0.59657911,2904.4,2904.0,1.16362805]
[1645165427297,0.59657911,2904.4,2904.1,0.86362805]
[1645165431145,0.59657911,2904.3,2904.1,0.86362805]
[1645165431363,3.3327,2904.9,2904.1,0.86362805]
[1645165431546,0.59812294,2904.8,2904.1,0.86362805]
[1645165432952,0.59812294,2904.8,2904.1,1.16362805]
[1645165433149,0.59812294,2904.8,2904.2,0.86362805]
[1645165433350,0.59812294,2904.8,2904.2,1.16362805]
[1645165433594,0.59812294,2904.8,2904.3,0.86362805]
[1645165434092,0.59812294,2904.9,2904.3,0.86362805]
[1645165434293,0.59812294,2904.8,2904.3,0.86362805]
[1645165434589,0.59812294,2904.7,2904.3,0.86362805]
[1645165434789,1.52277859,2905.0,2904.3,0.86362805]
[1645165434790,0.59812294,2904.6,2904.3,0.86362805]
[1645165434993,1.51960141,2905.0,2904.3,0.86362805]
[1645165434994,0.59812294,2904.5,2904.3,0.86362805]
[1645165435192,0.59812294,2904.4,2904.3,0.86362805]
[1645165435394,1.52277859,2905.0,2904.4,0.00109289]
[1645165435613,0.59783525,2904.9,2904.4,0.00109289]
[1645165440250,0.59783525,2904.9,2904.4,1.16472094]
[1645165440453,0.59783525,2904.9,2904.5,0.86229199]
[1645165445846,0.59783525,2904.9,2904.4,0.30109289]
[1645165446052,0.59783525,2904.9,2904.4,0.00109289]
[1645165446245,0.59783525,2904.9,2904.4,0.30109289]
[1645165448260,0.00317725,2905.0,2904.4,0.30109289]
[1645165448711,0.00317725,2905.0,2904.4,0.00109289]
[1645165449305,1.2372296,2905.1,2904.4,0.00109289]
[1645165449505,0.00317727,2905.0,2904.4,0.00109289]
[1645165450406,1.2372296,2905.1,2904.4,0.00109289]
[1645165450807,0.00317727,2905.0,2904.4,0.00109289]
[1645165451718,1.2372296,2905.1,2904.4,0.00109289]
[1645165451908,0.00317727,2905.0,2904.4,0.00109289]
[1645165452948,2.0981696,2905.1,2904.4,0.00109289]
[1645165453248,0.00317727,2905.0,2904.4,0.00109289]
[1645165454046,2.0981696,2905.1,2904.4,0.00109289]
[1645165454249,0.00317727,2905.0,2904.4,0.00109289]
[1645165455349,2.0981696,2905.1,2904.4,0.00109289]
[1645165455547,0.00317727,2905.0,2904.4,0.00109289]
[1645165456591,2.0981696,2905.1,2904.4,0.00109289]
[1645165456790,0.00317727,2905.0,2904.4,0.00109289]
[1645165457794,2.0981696,2905.1,2904.4,0.00109289]
[1645165457995,0.00317727,2905.0,2904.4,0.00109289]
[1645165459596,0.00228823,2905.0,2904.4,0.00109289]
[1645165460042,2.0981696,2905.1,2904.4,0.00109289]
[1645165460544,0.0049296,2905.1,2904.4,0.00109289]
[1645165460748,0.59834682,2905.0,2904.4,0.50009289]
[1645165460946,0.59834682,2905.0,2904.5,4.36250563]
[1645165461145,0.59834682,2905.0,2904.6,0.86250563]
[1645165461346,0.59834682,2904.9,2904.6,1.16250563]
[1645165461546,0.5983862,2904.8,2904.7,0.86250563]
[1645165461851,0.59838263,2904.8,2904.7,0.86250563]
[1645165462046,0.00317737,2904.9,2904.7,1.88572247]
[1645165462247,0.59838244,2905.1,2904.9,4.2078042]
[1645165462466,0.59838244,2905.1,2905.0,4.36250563]
[1645165462650,0.59838244,2905.1,2905.0,1.66150563]
[1645165462849,0.0049296,2905.2,2905.0,1.95660563]
[1645165463050,1.0049296,2905.3,2905.1,0.86250563]
[1645165463251,1.0049296,2905.3,2905.2,1.16049]
[1645165463497,1.5983353,2905.3,2905.2,2.02299563]
[1645165464402,1.5983353,2905.3,2905.2,1.16250563]
[1645165464827,1.5983353,2905.3,2905.2,4.66250563]
[1645165465403,1.5983353,2905.3,2905.2,1.16250563]
[1645165467009,1.5983353,2905.3,2905.2,4.66250563]
[1645165468649,1.5983353,2905.3,2905.2,1.16250563]
[1645165472399,1.0,2905.3,2905.2,1.16250563]
[1645165472698,1.59725727,2905.3,2905.2,1.16250563]
[1645165473508,1.59721089,2905.3,2905.2,1.16250563]
[1645165478796,1.0,2905.3,2905.2,1.16250563]
[1645165482093,0.0049296,2905.8,2905.4,0.17909544]
[1645165482354,0.59953643,2905.7,2905.6,1.13183114]
[1645165482550,0.59953643,2905.7,2905.4,0.17909544]
[1645165484150,1.02815938,2905.5,2905.4,0.17909544]
[1645165484349,0.60446603,2905.5,2905.4,0.17909544]
[1645165484750,0.0049296,2905.5,2905.4,0.17909544]
[1645165484957,0.59953643,2905.5,2905.4,0.17909544]
[1645165485160,0.60446603,2905.5,2905.4,0.17909544]
[1645165485549,0.0049296,2905.5,2905.4,0.17909544]
[1645165485749,0.59953643,2905.5,2905.4,0.17909544]
[1645165485993,0.60446603,2905.5,2905.4,0.17909544]
[1645165488799,0.0049296,2905.5,2905.4,1.01881749]
[1645165489003,0.59953643,2905.5,2905.4,1.01881749]
[1645165489399,0.0049296,2905.5,2905.4,1.01881749]
[1645165489776,0.00317692,2905.6,2905.4,1.01881749]
[1645165489971,0.00317692,2905.6,2905.5,0.83972205]
[1645165490177,0.60446603,2905.8,2905.5,0.83972205]
[1645165490474,0.00317689,2905.6,2905.5,0.83972205]
[1645165490672,0.00317689,2905.6,2905.4,0.17909544]
[1645165491078,0.60764292,2905.6,2905.4,0.17909544]
[1645165491274,0.59953643,2905.6,2905.4,0.17909544]
[1645165491474,0.60271332,2905.6,2905.4,0.17909544]
[1645165492579,0.59953643,2905.6,2905.4,0.17909544]
[1645165492781,0.60271332,2905.6,2905.4,0.17909544]
[1645165493376,0.60271332,2905.6,2904.9,2.07379082]
[1645165493609,0.0049296,2905.5,2905.0,0.83701551]
[1645165493794,0.59953643,2905.4,2905.0,0.83701551]
[1645165493995,0.59953643,2905.3,2905.0,0.83701551]
[1645165494194,0.59953643,2905.2,2905.0,0.83701551]
[1645165494396,0.59953643,2905.1,2905.0,0.83701551]
[1645165494795,0.60446603,2905.3,2905.0,0.83701551]
[1645165495838,0.60446603,2905.3,2905.0,4.33701551]
[1645165495997,0.59953643,2905.2,2905.1,0.83701551]
[1645165496396,0.00317684,2905.5,2905.1,1.13701551]
[1645165496596,0.00317684,2905.5,2905.2,0.83701551]
[1645165497348,0.60446603,2905.8,2905.2,0.83701551]
[1645165497547,0.00317693,2905.5,2905.2,0.83701551]
[1645165498446,0.60446603,2905.8,2905.2,0.83701551]
[1645165498646,0.59953643,2905.7,2905.2,0.83701551]
[1645165498846,0.00317693,2905.5,2905.2,0.83701551]
[1645165499056,0.60271336,2905.5,2905.2,0.83701551]
[1645165499249,0.59953643,2905.4,2905.2,0.83701551]
[1645165499449,0.59953643,2905.3,2905.2,0.83701551]
[1645165499850,0.0049296,2905.8,2905.2,0.83701551]
[1645165500051,0.00317691,2905.5,2905.2,0.83701551]
[1645165500451,0.60271334,2905.5,2905.2,0.83701551]
[1645165500657,0.0049296,2905.4,2905.2,0.83701551]
[1645165500994,0.59953643,2905.3,2905.2,0.83701551]
[1645165501396,0.00308163,2905.5,2905.2,0.83701551]
[1645165502099,0.0049296,2905.8,2905.2,0.83701551]
[1645165502301,0.00801123,2905.5,2905.2,0.83701551]
[1645165502506,0.59953643,2905.4,2905.2,0.83701551]
[1645165502708,0.59953643,2905.3,2905.2,0.83701551]
[1645165502905,0.00308163,2905.5,2905.2,0.83701551]
[1645165503307,0.0049296,2905.6,2905.2,0.83701551]
[1645165503503,0.00308163,2905.5,2905.2,0.83701551]
[1645165504105,0.62636566,2905.5,2905.2,0.83701551]
[1645165504305,0.62328403,2905.4,2905.2,0.83701551]
[1645165504506,0.62328403,2905.4,2904.9,0.7078042]
[1645165504507,0.65863141,2905.4,2904.9,0.7078042]
[1645165504763,1.28191544,2905.3,2904.9,0.7078042]
[1645165504957,1.28191544,2905.3,2905.0,0.83879441]
[1645165504958,0.62328403,2905.2,2905.0,0.83879441]
[1645165505155,0.62328403,2905.1,2904.9,0.7078042]
[1645165505352,0.65863141,2905.3,2904.9,0.7078042]
[1645165505353,0.62328403,2905.0,2904.9,0.7078042]
[1645165505959,0.65863141,2905.3,2904.9,1.54656776]
[1645165506154,0.62328403,2905.4,2905.0,1.91627393]
[1645165506155,1.28191544,2905.4,2905.0,1.91627393]
[1645165506353,1.28191544,2905.4,2905.0,1.07732558]
[1645165506553,1.28191544,2905.4,2905.1,0.83884686]
[1645165506767,1.28191544,2905.4,2905.0,1.07732558]
[1645165506954,1.28191544,2905.4,2905.1,0.83880753]
[1645165507154,1.28191544,2905.3,2905.2,0.83877862]
[1645165507358,1.28191544,2905.3,2905.1,0.83878031]
[1645165507562,0.62328403,2905.2,2905.0,1.07732558]
[1645165507760,0.62328403,2905.1,2905.0,1.37732558]
[1645165507981,0.62328403,2905.1,2905.0,2.21605273]
[1645165508160,0.62419865,2905.1,2905.0,2.21605273]
[1645165508499,0.62417141,2905.4,2905.0,2.21605273]
[1645165508694,0.62417977,2905.3,2905.1,0.83872715]
[1645165508896,0.62910937,2905.4,2905.1,0.83872715]
[1645165509293,0.62417977,2905.3,2905.1,0.83872715]
[1645165509693,0.00296611,2905.5,2905.1,0.83872715]
[1645165509694,0.62417977,2905.2,2905.1,0.83872715]
[1645165509994,0.62426412,2905.2,2905.1,0.8386318]
[1645165510193,0.62421116,2905.4,2905.1,0.8386318]
[1645165510393,0.62421828,2905.3,2905.1,0.8386318]
[1645165510593,0.62421828,2905.2,2905.1,0.8386318]
[1645165510797,0.6242124,2905.2,2905.1,0.8386318]
[1645165511593,0.6242124,2905.4,2905.1,0.8386318]
[1645165511795,0.6242124,2905.3,2905.1,0.8386318]
[1645165511995,0.6242124,2905.2,2905.1,0.8386318]
[1645165512466,0.629142,2905.4,2905.1,0.8386318]
[1645165512663,0.6242124,2905.3,2905.1,0.8386318]
[1645165512864,2.14862341,2905.4,2905.0,1.37732558]
[1645165513065,4.12425691,2905.3,2904.9,0.7078042]
[1645165513268,0.65863141,2905.0,2904.9,0.7078042]
[1645165513467,0.65863141,2905.0,2904.9,1.54658596]
[1645165513665,1.28288832,2905.0,2904.9,1.54658596]
[1645165513870,1.28360121,2905.0,2904.9,1.54658596]
[1645165514066,1.74375411,2905.0,2904.9,1.54658596]
[1645165514465,2.40309841,2905.0,2904.9,1.54658596]
[1645165515666,5.90309841,2905.0,2904.9,1.54658596]
[1645165515864,5.90309841,2905.0,2904.9,0.7078042]
[1645165516310,5.90309841,2905.0,2904.9,0.70696122]
[1645165517905,5.90309841,2905.0,2904.4,0.00109289]
[1645165517906,1.72234,2904.8,2904.4,0.00109289]
[1645165518103,4.29635691,2904.7,2904.4,0.00405969]
[1645165518303,4.29635691,2904.7,2904.5,0.82427541]
[1645165518304,0.62425691,2904.6,2904.5,0.82427541]
[1645165518504,4.12425691,2904.6,2904.4,0.00405969]
[1645165518704,4.12425691,2904.5,2904.4,0.00405969]
[1645165519008,0.62425691,2904.5,2904.4,0.8249551]
[1645165519206,3.5,2904.5,2904.4,0.00405954]
[1645165519408,4.12425691,2904.5,2904.0,0.00420936]
[1645165519610,3.5,2904.5,2903.9,0.04335864]
[1645165520050,3.5,2904.5,2903.9,0.03149027]
[1645165520450,1.08008968,2904.1,2903.9,0.03149027]
[1645165520646,3.5,2904.0,2903.9,0.03149027]
[1645165521847,0.86124,2904.2,2903.9,0.03149027]
[1645165522450,3.5,2904.1,2903.9,0.03149027]
[1645165522651,0.86124,2904.2,2903.9,0.03149027]
[1645165522852,3.5,2904.1,2903.9,0.03466841]
[1645165523054,6.0,2904.0,2903.6,0.00420936]
[1645165523254,3.5,2903.9,2903.5,0.01271445]
[1645165523896,0.93763933,2903.8,2903.2,0.00420936]
[1645165524092,3.5,2903.7,2903.2,0.00420936]
[1645165524297,0.1721,2903.6,2903.2,0.00420936]
[1645165524492,1.1721,2903.6,2902.9,0.00420936]
[1645165524710,3.5,2903.5,2902.9,0.00420936]
[1645165525394,3.5,2903.5,2902.7,0.00420936]
[1645165525594,4.36143,2903.5,2902.7,0.00420936]
[1645165525995,0.86143,2903.5,2902.7,0.00420936]
[1645165527648,0.86143,2903.5,2903.0,0.00317874]
[1645165528449,1.1466,2903.7,2903.0,0.00317874]
[1645165528648,1.1466,2903.7,2902.7,0.00420936]